bitfinex/quotes_SOLUSD_20250821
["timestamp","ask_amount","ask_price","bid_price","bid_amount"]
[1755817010909,0.06,182.03,182.02,50.69141788]
[1755817011101,0.06,182.03,182.02,67.20896788]
[1755817017332,0.06,182.03,182.02,26.03]
[1755817017611,0.06,182.03,182.02,0.03]
[1755817017786,0.06,182.03,182.02,26.03]
[1755817017989,0.06,182.03,182.02,26.72]
[1755817018190,0.06,182.03,182.02,0.03]
[1755817018495,0.06,182.03,182.02,26.03]
[1755817018695,0.06,182.03,182.02,26.72]
[1755817019291,0.06,182.03,182.02,31.62192211]
[1755817020512,0.06,182.03,182.02,37.11582387]
[1755817021727,0.06,182.03,182.02,48.14038211]
[1755817022821,0.06,182.03,182.02,53.63428387]
[1755817023624,0.06,182.03,182.02,48.14038211]
[1755817033418,0.06,182.03,182.02,53.63428387]
[1755817034930,0.06,182.03,182.02,48.14038211]
[1755817035518,0.06,182.03,182.02,53.63428387]
[1755817036231,0.06,182.03,182.02,48.14038211]
[1755817037340,0.06,182.03,182.02,53.63428387]
[1755817038147,0.06,182.03,182.02,67.22987788]
[1755817040022,0.06,182.03,182.02,61.73597612]
[1755817040550,0.06,182.03,182.02,47.45038211]
[1755817040746,0.06,182.03,182.02,26.03]
[1755817041046,0.4,182.03,182.02,26.03]
[1755817041426,0.06,182.03,182.02,30.93192211]
[1755817042041,0.06,182.03,182.02,31.61192211]
[1755817042431,0.06,182.03,182.02,33.81462611]
[1755817043245,0.06,182.03,182.02,39.30852787]
[1755817043945,0.06,182.03,182.02,33.81462611]
[1755817044147,0.06,182.03,182.02,39.30852787]
[1755817044832,0.06,182.03,182.02,7.13462611]
[1755817046543,0.06,182.03,182.02,7.81462611]
[1755817047251,0.06,182.03,182.02,7.13462611]
[1755817047642,0.06,182.03,182.02,26.03]
[1755817047844,0.06,182.03,182.02,0.03]
[1755817048239,0.06,182.03,182.02,26.03]
[1755817048744,0.06,182.03,182.02,0.03]
[1755817050552,0.06,182.03,182.02,0.71]
[1755817051139,0.06,182.03,182.02,0.03]
[1755817052055,0.06,182.03,182.02,0.71]
[1755817052252,0.06,182.03,182.02,5.61192211]
[1755817054381,0.06,182.03,182.02,11.10582387]
[1755817054553,0.06,182.03,182.02,5.61192211]
[1755817054856,0.06,182.03,182.02,13.33895011]
[1755817055465,0.06,182.03,182.02,18.83285187]
[1755817059057,0.06,182.03,182.02,32.42844588]
[1755817065360,0.06,182.03,182.02,26.25454412]
[1755817065659,0.06,182.03,182.02,26.93454412]
[1755817066064,0.06,182.03,182.02,32.42844588]
[1755817074573,0.06,182.03,182.02,30.66124342]
[1755817085287,0.06,182.03,182.02,73.12556656]
[1755817094097,0.06,182.03,182.02,30.94556656]
[1755817094300,0.06,182.03,182.02,73.10556656]
[1755817100101,0.06,182.03,182.02,30.94556656]
[1755817100280,0.06,182.03,182.02,73.10556656]
[1755817119205,0.06,182.03,182.02,72.42556656]
[1755817119711,0.06,182.03,182.02,73.10556656]
[1755817119909,0.06,182.03,182.02,73.08556656]
[1755817121030,0.06,182.03,182.02,26.84652377]
[1755817121212,0.06,182.03,182.02,7.757028]
[1755817121213,0.4,182.03,182.02,7.757028]
[1755817121419,3.53471965,182.03,182.02,0.03]
[1755817121819,3.53471965,182.03,182.02,26.03]
[1755817122707,0.4,182.03,182.02,26.03]
[1755817123026,0.4,182.03,182.02,0.03]
[1755817123200,0.06,182.03,182.02,31.52390176]
[1755817123408,0.06,182.03,182.02,48.25421542]
[1755817123731,0.06,182.03,182.02,48.31421577]
[1755817124229,0.06,182.03,182.02,52.12893542]
[1755817126508,0.06,182.03,182.02,93.58893542]
[1755817127433,0.06,182.03,182.02,94.24893542]
[1755817127910,0.06,182.03,182.02,93.58893542]
[1755817128447,0.06,182.03,182.02,94.24893542]
[1755817128613,0.06,182.03,182.02,93.58893542]
[1755817130540,0.06,182.03,182.02,94.24893542]
[1755817131233,0.06,182.03,182.02,93.58893542]
[1755817131623,0.06,182.03,182.02,94.24893542]
[1755817132318,0.06,182.03,182.02,93.58893542]
[1755817133536,0.06,182.03,182.02,94.24893542]
[1755817135016,0.06,182.03,182.02,51.44893542]
[1755817135215,0.06,182.03,182.02,93.58893542]
[1755817135430,0.06,182.03,182.02,94.24893542]
[1755817140930,0.06,182.03,182.02,93.58893542]
[1755817142248,0.06,182.03,182.02,51.44893542]
[1755817142428,0.06,182.03,182.02,90.45421577]
[1755817142744,0.06,182.03,182.02,93.58893542]
[1755817143649,0.06,182.03,182.02,94.24893542]
[1755817144032,0.06,182.03,182.02,52.10893542]
[1755817144244,0.06,182.03,182.02,93.58893542]
[1755817144461,0.06,182.03,182.02,51.44893542]
[1755817144743,0.4,182.03,182.02,93.58893542]
[1755817144951,0.06,182.03,182.02,93.58893542]
[1755817146036,0.06,182.03,182.02,94.24893542]
[1755817154953,0.06,182.03,182.02,52.10893542]
[1755817155157,0.06,182.03,182.02,94.22893542]
[1755817156259,0.06,182.03,182.02,52.10893542]
[1755817156555,0.06,182.03,182.02,94.51325856]
[1755817160362,0.06,182.03,182.02,91.37853891]
[1755817164247,0.06,182.03,182.02,90.43421577]
[1755817164943,0.06,182.03,182.02,91.15421577]
[1755817166667,0.06,182.03,182.02,90.43421577]
[1755817167259,0.06,182.03,182.02,91.15421577]
[1755817169939,0.06,182.03,182.02,91.43853891]
[1755817173547,1e-08,182.03,182.02,91.43853891]
[1755817174765,1e-08,182.03,182.02,49.31853891]
[1755817174970,1e-08,182.03,182.02,91.43853891]
[1755817180977,1e-08,182.03,182.02,49.31853891]
[1755817181150,1e-08,182.03,182.02,91.41853891]
[1755817182467,1e-08,182.04,182.03,19.3735171]
[1755817182657,0.06,182.06,182.03,19.3735171]
[1755817182658,0.06,182.06,182.05,39.59559401]
[1755817182863,0.06,182.06,182.05,81.69559401]
[1755817183059,0.06,182.06,182.05,82.41559401]
[1755817183386,0.06,182.06,182.05,84.61708601]
[1755817184781,0.06,182.06,182.05,90.11008243]
[1755817191002,0.06,182.06,182.05,89.39008243]
[1755817192084,0.06,182.06,182.05,90.10008243]
[1755817200206,0.06,182.06,182.05,41.79708601]
[1755817200386,0.06,182.06,182.05,63.37008243]
[1755817200901,0.06,182.06,182.05,15.79708601]
[1755817201105,0.4,182.06,182.05,2.201492]
[1755817201280,0.4,182.06,182.02,19.20193953]
[1755817201483,0.4,182.06,182.05,26.0]
[1755817201801,0.4,182.06,182.02,19.20193953]
[1755817201975,0.06,182.06,182.02,19.20193953]
[1755817202173,0.34,182.05,182.04,2.20234]
[1755817202503,0.06,182.06,182.05,26.0]
[1755817202686,0.06,182.06,182.05,26.03]
[1755817202887,0.4,182.06,182.05,26.03]
[1755817204181,0.06,182.06,182.05,26.03]
[1755817205185,0.4,182.06,182.05,26.03]
[1755817205828,0.4,182.06,182.05,0.03]
[1755817212123,22.10406116,182.06,182.05,0.03]
[1755817212335,17.98574805,182.06,182.05,0.03]
[1755817212627,22.10053767,182.06,182.05,0.03]
[1755817213203,17.98574805,182.06,182.05,0.03]
[1755817214244,27.98574805,182.06,182.05,0.03]
[1755817215532,32.09219555,182.06,182.05,0.03]
[1755817217444,132.34,182.02,182.01,0.03]
[1755817217628,69.68574805,182.02,182.01,0.03]
[1755817217931,70.02574805,182.02,182.01,0.03]
[1755817219710,76.91598692,182.02,182.01,0.03]
[1755817221226,34.81598692,182.02,182.01,0.03]
[1755817221430,76.91598692,182.02,182.01,0.03]
[1755817222839,76.91598692,182.02,181.92,0.72]
[1755817222840,132.25,181.97,181.92,0.72]
[1755817223013,42.40432314,181.97,181.92,0.03]
[1755817223222,42.40432314,181.97,181.93,0.69]
[1755817223723,42.26216157,181.97,181.93,0.69]
[1755817225720,42.40432314,181.97,181.93,0.69]
[1755817229524,42.40432314,181.97,181.94,0.72]
[1755817233141,42.40432314,181.97,181.94,0.25]
[1755817234646,0.98432314,181.96,181.92,0.03]
[1755817234849,42.12,181.95,181.92,0.03]
[1755817235032,0.28432314,181.94,181.92,0.03]
[1755817235223,56.69991715,181.93,181.92,0.03]
[1755817238037,61.20521116,181.93,181.92,0.03]
[1755817238453,193.60521116,181.93,181.92,0.03]
[1755817243256,192.90521116,181.93,181.92,0.03]
[1755817244441,4.78961715,181.93,181.92,0.72]
[1755817244658,46.92961715,181.93,181.92,0.72]
[1755817245554,46.64529401,181.93,181.92,0.72]
[1755817245858,42.14,181.93,181.92,0.72]
[1755817246039,0.28432314,181.96,181.92,0.72]
[1755817246244,42.14,181.95,181.92,0.72]
[1755817252051,42.14,181.95,181.93,0.71]
[1755817252356,42.2,181.95,181.93,0.71]
[1755817252971,42.2,181.95,181.94,0.71]
[1755817256485,42.2,181.95,181.92,0.03]
[1755817256486,45.8949515,181.95,181.92,0.74]
[1755817256782,42.2,181.95,181.93,0.71]
[1755817256950,42.2,181.95,181.92,0.03]
[1755817257151,42.2,181.95,181.94,0.71]
[1755817257380,45.89619916,181.95,181.94,0.71]
[1755817260580,42.2,181.95,181.94,0.71]
[1755817260785,0.06,181.95,181.94,0.71]
[1755817260994,42.18,181.95,181.94,26.71]
[1755817261360,42.18,181.95,181.94,0.71]
[1755817263465,42.18,181.95,181.92,26.03]
[1755817263682,42.18,181.95,181.94,0.71]
[1755817269298,42.18,181.95,181.94,26.71]
[1755817270022,0.06,181.95,181.94,26.71]
[1755817270315,42.18,181.95,181.94,26.71]
[1755817271018,42.18,181.95,181.94,26.0]
[1755817271503,42.83,181.95,181.92,0.03]
[1755817271702,3.70225999,181.94,181.92,0.03]
[1755817272585,3.70225999,181.94,181.92,0.74]
[1755817273092,4.35225999,181.94,181.92,0.03]
[1755817274408,3.70225999,181.94,181.92,0.03]
[1755817276318,0.65,181.93,181.92,0.03]
[1755817276514,3.70225999,181.94,181.92,0.03]
[1755817276722,4.35225999,181.94,181.92,0.03]
[1755817277022,132.4,181.93,181.92,0.03]
[1755817281518,174.52,181.93,181.92,0.69]
[1755817282724,132.4,181.93,181.92,0.69]
[1755817282900,42.12,181.93,181.92,0.69]
[1755817286505,0.06,181.95,181.92,0.69]
[1755817286727,42.12,181.93,181.92,0.69]
[1755817287224,42.12,181.93,181.92,17.219381]
[1755817288623,42.12,181.93,181.92,22.71630272]
[1755817289720,42.12,181.93,181.92,17.219381]
[1755817290313,42.12,181.93,181.92,22.71630272]
[1755817290514,42.12,181.93,181.92,43.219381]
[1755817290720,42.12,181.93,181.92,17.219381]
[1755817293721,42.12,181.93,181.92,0.69]
[1755817294524,42.12,181.93,181.92,17.219381]
[1755817294714,42.12,181.93,181.92,16.559381]
[1755817294915,42.12,181.93,181.92,0.03]
[1755817295226,42.12,181.93,181.92,26.03]
[1755817296028,42.12,181.93,181.92,26.69]
[1755817299937,42.12,181.93,181.92,26.03]
[1755817303014,46.53794653,181.93,181.92,0.03]
[1755817304223,45.82794653,181.93,181.92,0.03]
[1755817304635,45.82794653,181.93,181.92,26.03]
[1755817306121,42.12,181.93,181.92,26.03]
[1755817307030,42.12,181.93,181.92,26.72]
[1755817310327,42.12,181.93,181.92,0.72]
[1755817311346,42.12,181.93,181.92,0.03]
[1755817312437,42.12,181.93,181.92,26.03]
[1755817313150,42.12,181.93,181.92,0.03]
[1755817314044,42.12,181.93,181.92,26.03]
[1755817314724,0.06,181.94,181.92,26.03]
[1755817314924,42.12,181.93,181.92,0.03]
[1755817315130,42.12,181.93,181.92,26.03]
[1755817316540,42.12,181.93,181.92,0.03]
[1755817317653,0.06,181.94,181.92,0.03]
[1755817317855,42.1,181.93,181.92,26.03]
[1755817318058,42.1,181.93,181.92,26.72]
[1755817322934,42.1,181.93,181.92,43.250291]
[1755817323259,42.1,181.93,181.92,48.74721272]
[1755817323462,0.06,181.94,181.92,48.74721272]
[1755817323757,0.06,181.94,181.93,0.69]
[1755817326969,0.06,181.95,181.93,3.82757239]
[1755817327151,0.06,181.96,181.94,3.13757239]
[1755817327349,0.06,181.99,181.97,26.0]
[1755817327665,0.06,181.99,181.97,29.13757239]
[1755817327873,0.06,181.99,181.97,29.82757239]
[1755817328238,0.06,181.99,181.98,3.82757239]
[1755817330357,0.06,181.99,181.98,10.49043232]
[1755817332055,0.06,181.99,181.98,15.98554167]
[1755817332260,0.06,181.99,181.98,32.50854967]
[1755817333436,0.06,181.99,181.98,21.42322416]
[1755817333437,0.72,181.99,181.98,21.42322416]
[1755817333793,0.72,181.99,181.98,4.90021616]
[1755817337550,0.72,181.99,181.94,26.69]
[1755817337760,5.62021616,181.99,181.98,26.0]
[1755817338577,5.62021616,181.99,181.97,26.0]
[1755817338757,42.8,181.98,181.97,26.0]
[1755817338960,42.1,181.98,181.97,26.0]
[1755817339150,42.8,181.98,181.97,26.0]
[1755817345279,42.1,181.98,181.97,26.0]
[1755817345475,47.00021616,181.98,181.97,26.0]
[1755817346383,42.1,181.98,181.97,26.0]
[1755817346678,47.00021616,181.98,181.96,26.69]
[1755817348188,47.00021616,181.98,181.97,0.69]
[1755817348692,47.00021616,181.98,181.96,26.69]
[1755817350584,42.1,181.98,181.96,26.69]
[1755817350884,47.00021616,181.98,181.97,0.03]
[1755817352584,42.1,181.98,181.97,26.72]
[1755817353164,42.1,181.98,181.97,0.72]
[1755817353592,0.06,181.99,181.98,26.0]
[1755817353773,0.06,181.99,181.98,26.69]
[1755817354666,5.66021616,181.99,181.97,16.555739]
[1755817354874,47.68021616,181.98,181.97,0.03]
[1755817355073,47.68021616,181.98,181.97,26.03]
[1755817355269,51.37929575,181.98,181.97,26.03]
[1755817355488,52.58043232,181.98,181.97,26.03]
[1755817355668,52.58043232,181.98,181.97,0.03]
[1755817355669,51.37941023,181.98,181.97,0.03]
[1755817355869,51.37941023,181.98,181.97,26.03]
[1755817357393,56.27962639,181.98,181.97,26.03]
[1755817357793,56.2802426,181.98,181.97,26.03]
[1755817359286,47.68021616,181.98,181.97,26.03]
[1755817359797,180.08021616,181.98,181.97,26.03]
[1755817360006,179.38021616,181.98,181.97,26.03]
[1755817361593,174.48,181.98,181.97,26.03]
[1755817361797,179.38021616,181.98,181.97,26.03]
[1755817362179,180.08021616,181.98,181.97,26.03]
[1755817362799,184.98043232,181.98,181.97,26.03]
[1755817362976,188.68178858,181.98,181.97,0.03]
[1755817363376,56.28178858,181.98,181.95,0.03]
[1755817363678,4.90021616,181.96,181.95,0.03]
[1755817363985,47.02021616,181.96,181.95,0.03]
[1755817364295,51.42157242,181.96,181.95,0.03]
[1755817370012,50.72157242,181.96,181.95,0.03]
[1755817370399,48.96236978,181.96,181.95,0.03]
[1755817370802,49.64236978,181.96,181.95,0.03]
[1755817371312,46.50135626,181.96,181.95,0.03]
[1755817371512,49.64236978,181.96,181.95,0.03]
[1755817371897,48.96236978,181.96,181.95,0.03]
[1755817373300,48.96236978,181.96,181.95,0.72]
[1755817374198,48.96236978,181.96,181.95,0.03]
[1755817378018,49.64236978,181.96,181.95,0.03]
[1755817379626,49.64236978,181.96,181.93,0.03]
[1755817379627,132.4,181.95,181.93,0.03]
[1755817379791,181.36236978,181.94,181.91,0.72]
[1755817379987,3.14101352,181.92,181.91,0.03]
[1755817380217,45.26101352,181.92,181.91,0.72]
[1755817380423,45.82135626,181.92,181.91,0.72]
[1755817380794,42.14,181.92,181.91,0.72]
[1755817380988,42.14,181.93,181.91,2.954646]
[1755817381537,45.28101352,181.93,181.92,0.69]
[1755817382398,47.04690571,181.93,181.92,0.69]
[1755817382907,47.04690571,181.93,181.92,26.69]
[1755817383832,42.14,181.93,181.92,26.69]
[1755817386414,47.04690571,181.93,181.92,26.69]
[1755817387407,47.04690571,181.93,181.92,26.0]
[1755817387619,50.75072231,181.93,181.92,26.0]
[1755817388127,47.04690571,181.93,181.92,26.0]
[1755817392430,50.75061581,181.93,181.92,26.0]
[1755817393937,51.43061581,181.93,181.91,0.03]
[1755817394236,4.90690571,181.92,181.91,0.03]
[1755817394410,4.90690571,181.92,181.91,0.72]
[1755817394733,42.14,181.93,181.91,0.72]
[1755817394933,4.90690571,181.92,181.91,0.72]
[1755817396311,47.04690571,181.93,181.91,0.72]
[1755817397810,47.04690571,181.93,181.91,0.03]
[1755817398011,47.04690571,181.93,181.92,0.69]
[1755817398212,50.75202493,181.93,181.92,0.69]
[1755817401720,51.52202493,181.93,181.91,0.03]
[1755817401915,9.32202493,181.92,181.91,0.03]
[1755817404335,7.55677216,181.92,181.91,0.03]
[1755817404515,6.84677216,181.92,181.91,0.03]
[1755817407424,7.55677216,181.92,181.91,0.03]
[1755817408816,6.84677216,181.92,181.91,0.03]
[1755817412533,3.70511922,181.92,181.91,0.72]
[1755817412727,6.84677216,181.92,181.91,0.72]
[1755817416444,6.85078041,181.92,181.91,0.72]
[1755817416926,3.14165294,181.92,181.91,0.72]
[1755817418055,3.20165294,181.92,181.91,0.72]
[1755817418238,6.9115105,181.92,181.91,0.03]
[1755817421356,6.91201973,181.92,181.91,0.03]
[1755817425038,6.91201973,181.92,181.91,0.72]
[1755817425356,6.91201973,181.92,181.91,0.03]
[1755817426061,6.91201973,181.92,181.91,0.72]
[1755817426445,6.91201973,181.92,181.91,0.03]
[1755817429840,6.91201973,181.92,181.91,0.71]
[1755817431040,6.91201973,181.92,181.91,0.03]
[1755817440342,3.77036679,181.92,181.91,0.03]
[1755817440543,6.91201973,181.92,181.91,0.03]
[1755817443271,3.77036679,181.92,181.91,0.03]
[1755817443475,6.91201973,181.92,181.91,0.03]
[1755817444955,7.60201973,181.92,181.91,0.03]
[1755817447354,16.36696785,181.92,181.91,0.03]
[1755817448176,11.72900936,181.92,181.91,0.03]
[1755817449960,11.72781946,181.92,181.91,0.03]
[1755817450372,7.60201973,181.92,181.91,0.03]
[1755817450570,25.60723793,181.92,181.91,0.03]
[1755817450861,25.60723793,181.92,181.89,0.03]
[1755817450862,13.87991715,181.9,181.89,0.03]
[1755817451172,84.16438756,181.9,181.89,0.03]
[1755817451480,84.85438756,181.9,181.89,0.03]
[1755817451848,0.28432314,181.89,181.88,0.03]
[1755817452073,38.11384969,181.89,181.88,0.03]
[1755817452275,13.87991715,181.88,181.87,0.03]
[1755817452464,63.52193688,181.88,181.87,0.03]
[1755817453354,17.02157009,181.87,181.86,0.2]
[1755817453553,21.42193688,181.87,181.86,0.2]
[1755817456272,25.87150385,181.87,181.86,0.2]
[1755817456867,25.18150385,181.87,181.86,0.2]
[1755817457065,8.4442569,181.87,181.86,0.9]
[1755817457386,11.58590984,181.87,181.86,0.9]
[1755817457570,11.58590984,181.87,181.86,0.2]
[1755817458897,12.26590984,181.87,181.86,0.2]
[1755817459984,11.58590984,181.87,181.86,0.2]
[1755817460660,6.85201973,181.87,181.86,0.9]
[1755817460989,6.85201973,181.87,181.86,0.2]
[1755817461286,6.85201973,181.87,181.86,0.9]
[1755817461287,11.21895919,181.87,181.86,0.9]
[1755817461585,6.85201973,181.87,181.86,0.9]
[1755817462968,11.27732063,181.87,181.86,0.9]
[1755817463691,11.27732063,181.87,181.86,0.2]
[1755817467309,11.33732063,181.87,181.86,0.2]
[1755817470284,11.33732063,181.87,181.86,0.9]
[1755817470482,6.91201973,181.87,181.86,0.9]
[1755817471484,3.20165294,181.87,181.86,0.9]
[1755817473791,3.20165294,181.87,181.86,0.2]
[1755817474701,3.20165294,181.87,181.86,0.9]
[1755817474702,3.75421607,181.87,181.86,0.9]
[1755817474906,6.89586901,181.87,181.86,0.9]
[1755817476402,6.89586901,181.87,181.86,0.2]
[1755817478315,3.75421607,181.87,181.86,0.2]
[1755817478494,7.86019215,181.87,181.86,0.2]
[1755817478810,7.86019215,181.87,181.85,0.03]
[1755817478811,0.28432314,181.86,181.85,0.03]
[1755817479010,49.92019215,181.86,181.85,0.03]
[1755817482508,49.24019215,181.86,181.85,0.03]
[1755817482807,48.95586901,181.86,181.85,0.73]
[1755817485824,45.26165294,181.86,181.85,0.73]
[1755817486112,48.96141489,181.86,181.85,0.73]
[1755817488999,48.96141489,181.86,181.85,0.7]
[1755817491401,3.14165294,181.86,181.85,0.7]
[1755817491598,45.26165294,181.86,181.85,0.7]
[1755817492103,42.12,181.86,181.85,0.7]
[1755817495115,45.26165294,181.86,181.85,0.7]
[1755817498736,42.12,181.86,181.85,0.7]
[1755817500221,42.12,181.86,181.85,3.84165294]
[1755817500222,0.06,181.86,181.85,3.84165294]
[1755817500535,0.06,181.86,181.85,29.84165294]
[1755817502412,0.06,181.86,181.85,26.7]
[1755817502610,45.30165294,181.86,181.85,42.564847]
[1755817502814,45.30165294,181.86,181.85,0.03]
[1755817505543,49.00623788,181.86,181.85,0.03]
[1755817506340,50.77672695,181.86,181.85,0.03]
[1755817507446,51.44672695,181.86,181.85,0.03]
[1755817508142,50.77672695,181.86,181.85,0.03]
[1755817508641,51.44672695,181.86,181.85,0.03]
[1755817509024,50.77672695,181.86,181.85,0.03]
[1755817509345,51.44672695,181.86,181.85,0.03]
[1755817510031,51.73105009,181.86,181.85,0.03]
[1755817511135,0.28432314,181.85,181.84,0.2]
[1755817511330,9.57105009,181.85,181.84,0.2]
[1755817519438,23.1666441,181.85,181.84,0.2]
[1755817519639,13.87991715,181.84,181.83,0.03]
[1755817519953,65.3366441,181.84,181.83,0.03]
[1755817522556,0.28432314,181.83,181.82,0.03]
[1755817522756,23.2166441,181.83,181.82,0.03]
[1755817523063,28.12878611,181.83,181.81,0.03]
[1755817523232,55.9331921,181.82,181.81,0.03]
[1755817523561,56.6531921,181.82,181.81,0.03]
[1755817525747,51.02105009,181.82,181.81,0.03]
[1755817525948,51.02105009,181.82,181.81,0.72]
[1755817526145,51.02105009,181.82,181.81,0.03]
[1755817529363,70.24878611,181.82,181.81,0.03]
[1755817529952,0.28432314,181.81,181.79,0.03]
[1755817530148,52.22860716,181.8,181.79,0.03]
[1755817541981,52.94860716,181.8,181.79,0.03]
[1755817542283,49.41892724,181.8,181.79,0.03]
[1755817542487,58.86083339,181.8,181.79,0.03]
[1755817542857,62.55034316,181.8,181.79,0.03]
[1755817544466,61.83034316,181.8,181.79,0.03]
[1755817546700,61.83034316,181.8,181.77,0.72]
[1755817546701,13.87991715,181.79,181.77,0.03]
[1755817546870,0.28432314,181.77,181.76,0.2003]
[1755817547059,3.43162519,181.77,181.76,0.2003]
[1755817547258,7.80467234,181.77,181.76,0.2003]
[1755817547461,21.40026635,181.77,181.72,0.69]
[1755817547766,3.14730205,181.73,181.72,0.69]
[1755817547958,45.26730205,181.73,181.72,0.69]
[1755817549383,45.26730205,181.73,181.65,26.0]
[1755817549682,42.12,181.73,181.71,0.69]
[1755817550086,132.4,181.72,181.67,26.0]
[1755817550294,42.12,181.71,181.67,26.0]
[1755817550763,4.92080095,181.7,181.68,0.69]
[1755817550965,42.12,181.69,181.68,0.69]
[1755817551785,47.04080095,181.69,181.68,0.69]
[1755817555278,47.04080095,181.69,181.64,26.0]
[1755817555459,47.04080095,181.69,181.66,0.69]
[1755817556185,47.04080095,181.69,181.66,26.69]
[1755817556366,47.04080095,181.69,181.67,0.69]
[1755817556563,4.92080095,181.68,181.67,0.69]
[1755817559283,42.12,181.69,181.67,0.69]
[1755817559592,4.92080095,181.68,181.67,0.69]
[1755817560964,4.92080095,181.68,181.65,0.69]
[1755817561169,4.92080095,181.66,181.65,26.69]
[1755817562268,4.92080095,181.66,181.65,0.69]
[1755817566389,47.06080095,181.67,181.65,0.69]
[1755817567272,47.06080095,181.67,181.64,42.585834]
[1755817567273,4.92080095,181.66,181.64,42.585834]
[1755817567480,42.14,181.65,181.64,42.585834]
[1755817567778,42.14,181.65,181.64,26.72]
[1755817567976,42.14,181.65,181.64,43.275835]
[1755817568386,4.92080095,181.67,181.64,43.275835]
[1755817568575,42.14,181.65,181.64,42.585835]
[1755817569198,42.14,181.65,181.64,43.275835]
[1755817569397,42.14,181.65,181.64,26.72]
[1755817569601,42.14,181.65,181.64,43.275834]
[1755817570894,4.92080095,181.67,181.64,43.275834]
[1755817571083,42.14,181.66,181.65,0.69]
[1755817571401,4.92080095,181.67,181.65,26.69]
[1755817571570,42.14,181.66,181.65,42.555834]
[1755817572199,42.14,181.66,181.65,43.245834]
[1755817576682,132.4,181.7,181.65,51.90030925]
[1755817576884,42.14,181.69,181.66,0.7]
[1755817577394,42.14,181.69,181.67,16.554007]
[1755817577687,42.14,181.69,181.68,0.7]
[1755817578092,45.28938304,181.69,181.68,0.7]
[1755817578294,45.28938304,181.69,181.67,16.554007]
[1755817578502,45.28938304,181.69,181.67,17.254007]
[1755817579926,45.28938304,181.69,181.68,0.7]
[1755817580595,42.14,181.69,181.68,0.7]
[1755817582720,132.4,181.7,181.68,9.35347928]
[1755817583012,42.14,181.69,181.68,17.251267]
[1755817583217,3.14938304,181.72,181.71,26.0]
[1755817583405,45.28938304,181.72,181.71,26.0]
[1755817584002,45.94938304,181.72,181.71,26.0]
[1755817584201,45.94938304,181.72,181.69,26.0]
[1755817584404,3.14938304,181.71,181.69,26.0]
[1755817584611,42.14,181.7,181.69,42.552181]
[1755817585901,42.14,181.7,181.69,43.252181]
[1755817586416,42.14,181.7,181.67,0.03]
[1755817586417,45.94938304,181.7,181.67,0.03]
[1755817586619,3.14938304,181.69,181.67,0.03]
[1755817586819,45.28938304,181.68,181.67,0.03]
[1755817587922,45.94938304,181.68,181.67,0.03]
[1755817588318,47.72107042,181.68,181.67,0.03]
[1755817588505,47.06107042,181.68,181.67,0.03]
[1755817589010,42.12,181.68,181.67,26.73]
[1755817593430,42.12,181.68,181.67,48.78758015]
[1755817595022,42.12,181.68,181.67,43.283094]